Cogmind - Beta 15 @@@ ROGUE MODE // 2025.08.13 @ 00:05:15 Player: Rockstar Result: Destroyed by G-47 Trooper with Particle Gun Performance ------------- Evolutions (2) 1000 Regions Visited (5) 1000 Robots Destroyed (21) 105 Value Destroyed (1027) 1027 Prototype IDs (2) 40 Alien Tech Used (0) 0 Bonus (320) 320 TOTAL SCORE: 3492 Bonus ------- Follower Combat Kills 120 Entered Garrisons 200 Cogmind --------- Core Integrity 0/550 Matter 295/300 Energy 100/100 System Corruption 0% Temperature Cool (9) Movement Walking (120) Location -8/Garrison Parts ------- > --- POWER (1) -------- (None) > --- PROPULSION (2) --- Aluminum Leg Carbon-fiber Leg > --- UTILITY (6) ------ (None) > --- WEAPON (2) ------- (None) > --- INVENTORY (5) ---- Light Nuclear Core Aluminum Leg Carbon-fiber Leg Compact Wheel Mining Laser Peak State ------------ > --- POWER ------------ Light Nuclear Core > --- PROPULSION ------- Carbon-fiber Leg Compact Wheel > --- UTILITY ---------- Power Shielding Propulsion Shielding Weapon Shielding Light Armor Plating Medium Armor Plating Medium Armor Plating > --- WEAPON ----------- Mace > --- INVENTORY -------- Aluminum Leg Aluminum Leg Improved Heat Sink Heavy Assault Rifle Mining Laser [Rating: 17] Favorites ----------- Power Heavy Ion Engine Engine Heavy Ion Engine Power Core Light Nuclear Core Propulsion Aluminum Leg Leg Aluminum Leg Wheel Compact Wheel Utility Power Shielding Device Heat Sink Storage Small Storage Unit Protection Power Shielding Weapon Mace Energy Gun Particle Gun Ballistic Gun Light Assault Rifle Impact Weapon Mace Build | -11 -10 -9 -9 -8 -8 ------- Run | Yrd Mat Mat Min Mat Gar Slots Evolved 4 | . . 2 . 2 . Power . | . . . . . . Propulsion . | . . . . . . Utility 4 | . . 2 . 2 . Weapon . | . . . . . . Parts Attached 42 | 5 5 10 9 6 7 Power 6 | 1 . 1 2 1 1 Engine 4 | 1 . 1 2 . . Core 2 | . . . . 1 1 Reactor . | . . . . . . Propulsion 14 | 2 1 3 1 4 3 Treads . | . . . . . . Leg 13 | 2 1 3 1 3 3 Wheel 1 | . . . . 1 . Hover . | . . . . . . Flight . | . . . . . . Utility 14 | . 4 3 5 1 1 Device 5 | . 1 2 1 . 1 Storage 2 | . 1 1 . . . Processor . | . . . . . . Hackware . | . . . . . . Protection 7 | . 2 . 4 1 . Artifact . | . . . . . . Weapon 8 | 2 . 3 1 . 2 Energy Gun 2 | . . . . . 2 Energy Cannon . | . . . . . . Ballistic Gun 5 | 2 . 2 1 . . Ballistic Cannon . | . . . . . . Launcher . | . . . . . . Special Weapon . | . . . . . . Impact Weapon 1 | . . 1 . . . Slashing Weapon . | . . . . . . Piercing Weapon . | . . . . . . Special Melee Weapon . | . . . . . . Unidentified Prototypes . | . . . . . . Parts Lost 18 | . . 4 1 3 10 Power 2 | . . . . . 2 Propulsion 3 | . . 1 1 . 1 Utility 7 | . . . . 3 4 Weapon 6 | . . 3 . . 3 Highest Loss Streak 5 | . . 2 1 3 5 To Critical Strikes . | . . . . . . Average Backups 6 | 1 3 7 7 4 4 Power 1 | . 1 2 1 . 1 Propulsion 1 | . . 2 2 2 2 Utility . | . 1 . . . . Weapon 1 | . 1 2 1 1 1 Tool/Special . | . . . . . . Unused Backups 8 | . . 2 2 1 3 Power 4 | . . 1 1 1 1 Propulsion 2 | . . 1 . . 1 Utility . | . . . . . . Weapon 2 | . . . 1 . 1 Tool/Special . | . . . . . . Average Slot Usage (%) 84 | . 91 95 83 81 50 Engine 9 | . 14 11 11 5 . Core 1 | . . . . 3 7 Leg 18 | . 28 21 16 14 16 Device 5 | . 6 7 8 . 5 Storage 6 | . 4 11 8 . . Protection 25 | . 9 22 26 45 10 Ballistic Gun 9 | . 28 20 . 3 2 Impact Weapon 5 | . . 1 11 5 . Peak Build Rating 17 | 5 7 13 15 17 15 Average Rating 11 | 3 6 11 11 15 11 On Entrance 7 | . 5 7 12 11 12 Naked Turns . | . . . . . . Heaviest Build 29 | 5 7 21 29 29 13 Greatest Support 25 | 20 20 20 20 25 25 Greatest Overweight (x) 2 | . . 1 2 1 . Average Overweight (x) . | . . . . . . Largest Inventory Capacity 8 | 5 5 8 8 5 5 Average Capacity 6 | 5 5 8 7 5 5 Most Carried 8 | 3 5 8 8 5 5 Average Carried 6 | 1 3 7 7 4 4 Final Capacity 8 | 5 5 8 5 5 5 Final Carried 8 | 3 5 8 5 5 5 Class Distribution -------------------- 93% | Mutant 6% | Scavenger-Mutant Dominant Class ---------------- Mutant | -10/Materials Mutant | -9/Materials Mutant | -9/Mines Mutant | -8/Materials Scavenger-Mutant | -8/Garrison Resources | -11 -10 -9 -9 -8 -8 ----------- Run | Yrd Mat Mat Min Mat Gar Matter Collected 858 | 175 35 407 70 119 52 Remotely . | . . . . . . Salvage Created 885 | . 35 540 91 86 133 Parts 44 | . 2 33 2 3 4 Haulers Intercepted . | . . . . . . Recyclers Shooed . | . . . . . . Parts Field Recycled . | . . . . . . Retrieved Matter . | . . . . . . Parts Self-Destructed . | . . . . . . Prevented . | . . . . . . Kills | -11 -10 -9 -9 -8 -8 ------- Run | Yrd Mat Mat Min Mat Gar Combat Hostiles Destroyed 20 | . 1 11 3 2 3 Melee 3 | . . . 2 1 . Guns 15 | . 1 10 . 1 3 Classes Destroyed 6 | . 1 3 1 . 1 Watcher 1 | . . 1 . . . Swarmer 1 | . . . 1 . . Grunt 14 | . 1 7 2 2 2 Duelist 1 | . . 1 . . . Sentry 3 | . . 3 . . . Hunter 1 | . . . . . 1 Best Kill Streak 2 | . 1 2 2 1 2 Combat Bots Only 2 | . 1 2 2 1 2 Max Kills in Single Turn 1 | . 1 1 1 1 1 Gunslinging . | . . . . . . Exploded . | . . . . . . Melee 1 | . . . 1 1 . Uniques/NPCs Destroyed . | . . . . . . Combat | -11 -10 -9 -9 -8 -8 -------- Run | Yrd Mat Mat Min Mat Gar Hostile Shots Fired 275 | . 15 80 21 51 108 Missed 66 | . 4 17 3 10 32 Hits 209 | . 11 63 18 41 76 Melee 7 | . . 3 . 1 3 Projectile 202 | . 11 60 18 40 73 Critical Strikes 6 | . . . . 2 4 Actively Blocked 3 | . . . . . 3 Damage Taken 2995 | . 124 871 179 636 1185 Core 755 | . 22 120 63 115 435 Absorbed by Shields . | . . . . . . Redirected to Shielding 180 | . 12 38 3 52 75 Core Remaining (%) 81 | 100 91 . 54 . . Volleys Fired 73 | . 10 39 . 3 21 Largest 2 | . 2 2 . 1 2 Hottest 130 | . 40 43 . 23 130 Shots Fired 131 | . 20 78 . 3 30 Gun 131 | . 20 78 . 3 30 Cannon . | . . . . . . Launcher . | . . . . . . Special . | . . . . . . Kinetic 112 | . 20 78 . 3 11 Thermal 19 | . . . . . 19 Explosive . | . . . . . . Electromagnetic . | . . . . . . Robot Hit Streak 9 | . 5 6 . 6 9 Robot Miss Streak 3 | . 2 3 . 1 1 Penetration Max . | . . . . . . Secondary Targets 1 | . . 1 . . . Max Gunslinging Chain 1 | . . 1 . . . Shots Hit Robots 110 | . 14 54 8 10 24 Core Hits 41 | . 2 22 1 3 13 Critical Kills . | . . . . . . Critical Parts Destroyed 3 | . . . 2 1 . Critical Strikes 4 | . . . 2 1 1 Burn 1 | . . . . . 1 Smash 3 | . . . 2 1 . Melee Attacks 26 | . . 4 12 10 . Impact 26 | . . 4 12 10 . Slashing . | . . . . . . Piercing . | . . . . . . Sneak Attacks . | . . . . . . Combat Hostiles . | . . . . . . Follow-up Attacks . | . . . . . . Damage Inflicted 1809 | . 108 753 261 312 375 Guns 1206 | . 108 691 . 35 372 Cannons . | . . . . . . Explosions . | . . . . . . Melee 593 | . . 56 261 276 . Ramming 10 | . . 6 . 1 3 Kinetic 969 | . 108 691 . 35 135 Thermal 237 | . . . . . 237 Explosive . | . . . . . . Electromagnetic . | . . . . . . Impact 593 | . . 56 261 276 . Slashing . | . . . . . . Piercing . | . . . . . . Highest Corruption . | . . . . . . Average Corruption . | . . . . . . Corruption Purged . | . . . . . . Corruption Blocked . | . . . . . . Overload Shots . | . . . . . . Overflow Damage 124 | . . 8 86 30 . Projectiles . | . . . . . . Explosions . | . . . . . . Melee 124 | . . 8 86 30 . Knockbacks 3 | . . . 2 1 . Impact 3 | . . . 2 1 . Kinetic . | . . . . . . Secondary . | . . . . . . Self-Inflicted Damage . | . . . . . . Shots . | . . . . . . Rammed . | . . . . . . Targets Rammed 6 | . . 3 . 1 2 Kicked 6 | . . 3 . 1 2 Crushed . | . . . . . . Highest Temperature 141 | . 12 7 . 13 141 Average Temperature 46 | . 8 3 . 4 72 Received Heat Transfer 1311 | . 66 327 54 369 495 Siege Activations . | . . . . . . Martial Activations . | . . . . . . Shielding Activations . | . . . . . . Robots Disrupted . | . . . . . . Combat Hostiles . | . . . . . . Robots Corrupted 2 | . . 1 1 . . Combat Hostiles 2 | . . 1 1 . . Parts Fried 5 | . . 2 3 . . Impact Corruptions 8 | . . 1 5 2 . Robots Melted . | . . . . . . Combat Hostiles . | . . . . . . Parts Melted 2 | . . . . . 2 Heat Transferred 454 | . . . . . 454 Parts Sabotaged . | . . . . . . Parts Stolen . | . . . . . . Parts Stripped . | . . . . . . Power Chain Reactions . | . . . . . . Alert | -11 -10 -9 -9 -8 -8 ------- Run | Yrd Mat Mat Min Mat Gar Maximum Alert Level . | . . . . . . Low Security (%) 100 | 100 100 100 100 100 100 Level 1 . | . . . . . . Level 2 . | . . . . . . Level 3 . | . . . . . . Level 4 . | . . . . . . Level 5 . | . . . . . . High Security . | . . . . . . Max Security . | . . . . . . Peak Influence 124 | . 30 124 117 68 94 Initial 37 | . . 8 37 . 12 Average 31 | . 4 63 31 7 33 Influence Increases 865 | . 34 328 167 202 134 Destroy 0b10 Robot/C 520 | . 20 220 120 100 60 Destroy 0b10 Robot/NC 10 | . . 5 5 . . Destroy Leader 142 | . 10 72 20 30 10 Allied During Kill 45 | . . . 22 23 . Successful Hack 22 | . 4 . . 4 14 Disable Machine 15 | . . 15 . . . Anti-Garrison Action 50 | . . . . . 50 Destroy Structure 1 | . . 1 . . . Lose Combat Pursuer 60 | . . 15 . 45 . Influence Decreases 801 | . 14 250 265 183 89 Entered New Map 80 | . . 12 61 . 7 Time Decay 486 | . 14 198 194 80 . Lost Part 142 | . . 40 10 10 82 Lost Ally 93 | . . . . 93 . Squads Dispatched 6 | . 2 3 . 1 . Investigation 1 | . . 1 . . . Extermination . | . . . . . . Reinforcement 5 | . 2 2 . 1 . Assault . | . . . . . . Garrison . | . . . . . . Intercept . | . . . . . . Searches Triggered . | . . . . . . Construction Impeded . | . . . . . . Haulers Reinforced . | . . . . . . Active Scanning Responses . | . . . . . . Cargo Convoy Interrupts . | . . . . . . Stealth | -11 -10 -9 -9 -8 -8 --------- Run | Yrd Mat Mat Min Mat Gar Distress Signals 3 | . . 2 . 1 . Communications Jammed . | . . . . . . Distress Signals . | . . . . . . Times Spotted 62 | . 4 23 8 18 9 Peak Tracking Total 8 | . 1 7 4 8 5 Tactical Retreats 4 | . . 1 . 3 . Traps | -11 -10 -9 -9 -8 -8 ------- Run | Yrd Mat Mat Min Mat Gar Traps Triggered . | . . . . . . Indirectly . | . . . . . . Trap Hack Attempts . | . . . . . . Triggered . | . . . . . . Disarmed . | . . . . . . Reprogrammed . | . . . . . . Reused . | . . . . . . Traps Extracted . | . . . . . . Installed . | . . . . . . Triggered . | . . . . . . Machines | -11 -10 -9 -9 -8 -8 ---------- Run | Yrd Mat Mat Min Mat Gar Machines Disabled 2 | . . 1 . . 1 Max in Single Turn 1 | . . 1 . . 1 Garrison Relay 1 | . . . . . 1 Machines Repaired . | . . . . . . Machines Dismantled . | . . . . . . Machines Sabotaged . | . . . . . . Overloaded Fab Kills . | . . . . . . Hacking | -11 -10 -9 -9 -8 -8 --------- Run | Yrd Mat Mat Min Mat Gar Machines Accessed 4 | . 1 1 . 1 1 Terminals 2 | . 1 . . . 1 Fabricators . | . . . . . . Repair Stations . | . . . . . . Recycling Units . | . . . . . . Scanalyzers 1 | . . 1 . . . Garrison Access 1 | . . . . 1 . Total Hacks 9 | . 3 4 . 1 1 Successful 8 | . 2 4 . 1 1 Failed 1 | . 1 . . . . Catastrophic . | . . . . . . Database Lockouts . | . . . . . . Manual . | . . . . . . Terminals 4 | . 3 . . . 1 Fabricators . | . . . . . . Repair Stations . | . . . . . . Recycling Units . | . . . . . . Scanalyzers 4 | . . 4 . . . Garrison Access 1 | . . . . 1 . Terminal Hacks 3 | . 2 . . . 1 Prototype ID Bank 1 | . 1 . . . . Emergency Access Points 1 | . . . . . 1 Locate Traps 1 | . 1 . . . . Fabricator Hacks . | . . . . . . Repair Station Hacks . | . . . . . . Recycling Unit Hacks . | . . . . . . Scanalyzer 4 | . . 4 . . . Insert Component 2 | . . 2 . . . Analyze 2 | . . 2 . . . Garrison Access Hacks 1 | . . . . 1 . Unlock Access 1 | . . . . 1 . Unauthorized Hacks . | . . . . . . Terminals . | . . . . . . Fabricators . | . . . . . . Repair Stations . | . . . . . . Recycling Units . | . . . . . . Scanalyzers . | . . . . . . Garrison Access . | . . . . . . Data Cores Recovered . | . . . . . . Used . | . . . . . . Hacking Detections 4 | . 1 1 . 1 1 Full Trace Events 1 | . . 1 . . . Feedback Events . | . . . . . . Feedback Blocked . | . . . . . . Robot Schematics Acquired . | . . . . . . Robots Built . | . . . . . . Authchips . | . . . . . . Time . | . . . . . . Total Robot Build Rating . | . . . . . . Part Schematics Acquired 2 | . . 2 . . . Parts Built . | . . . . . . Authchips . | . . . . . . Time . | . . . . . . Total Part Build Rating . | . . . . . . Parts Repaired . | . . . . . . Time . | . . . . . . Parts Recycled . | . . . . . . Recycled Matter . | . . . . . . Retrieved Matter . | . . . . . . Retrieved Components . | . . . . . . Parts Scanalyzed 2 | . . 2 . . . Part Schematics Acquired 2 | . . 2 . . . Parts Damaged . | . . . . . . Bothacking | -11 -10 -9 -9 -8 -8 ------------ Run | Yrd Mat Mat Min Mat Gar Used RIF Installer . | . . . . . . Robots Hacked . | . . . . . . Non-combat . | . . . . . . Combat . | . . . . . . Robot Hacks Applied . | . . . . . . Relay Couplers Released 4 | . . . . . 4 Machine Destruction 4 | . . . . . 4 Fabnet Peak Effective % . | . . . . . . Robots Rewired . | . . . . . . Allies Hacked . | . . . . . . Hacks Repelled . | . . . . . . Allies | -11 -10 -9 -9 -8 -8 -------- Run | Yrd Mat Mat Min Mat Gar Total Allies 5 | . . . 5 . . Largest Group 5 | . . . 5 5 . Highest-Rated Group 87 | . . . 87 87 . Highest-Rated Ally 31 | . . . 31 31 . Total Orders . | . . . . . . Ally Attacks 41 | . . . 21 20 . Total Damage 448 | . . . 219 229 . Kills 7 | . . . 4 3 . Allies Corrupted . | . . . . . . Allies Melted . | . . . . . . Intel | -11 -10 -9 -9 -8 -8 ------- Run | Yrd Mat Mat Min Mat Gar Active Infowar (turns) . | . . . . . . Robot Analysis Total . | . . . . . . Derelict Logs Recovered . | . . . . . . Drone Launches . | . . . . . . Drone Recoveries . | . . . . . . Exploration | -11 -10 -9 -9 -8 -8 ------------- Run | Yrd Mat Mat Min Mat Gar Turns Passed 1872 | 67 193 490 636 355 131 Spaces Moved 1022 | 51 130 222 370 193 56 Core 6 | 6 . . . . . Treads . | . . . . . . Legs 945 | 45 130 222 370 122 56 Wheels 71 | . . . . 71 . Hover . | . . . . . . Flight . | . . . . . . Fastest Speed 50 | 50 120 120 120 115 120 Average Speed 140 | 111 120 144 149 148 120 Slowest Speed 260 | 120 120 190 260 190 120 Overloaded Moves . | . . . . . . Propulsion Burnouts . | . . . . . . Robots Hopped . | . . . . . . Potential Cave-ins . | . . . . . . Cave-ins Triggered . | . . . . . . Exploration Rate (%) 28 | 3 24 30 70 33 12 Regions Visited 5 Branch Regions 1 Pre-discovered Areas . | . . . . . . Known Exits Taken 1 | . . . . 1 . Unknown Exits Taken 4 | 1 1 1 1 . . Scrap Searched 1 | . . . 1 . . Spaces Dug . | . . . . . . Terrain Destroyed . | . . . . . . Melee . | . . . . . . Projectile . | . . . . . . AOE . | . . . . . . Terrain Rammed . | . . . . . . Walls Destroyed . | . . . . . . Machines Disabled . | . . . . . . Actions | -11 -10 -9 -9 -8 -8 --------- Run | Yrd Mat Mat Min Mat Gar Total 1282 | 58 151 308 434 244 87 Wait 63 | . . 18 30 15 . Move 1018 | 50 129 221 369 193 56 Hop . | . . . . . . Pick Up 17 | 3 2 6 1 5 . Fast Attach 23 | 5 4 1 6 3 4 Attach 8 | . . 4 1 2 1 Detach 6 | . 2 . 3 1 . Swap 17 | . 1 7 4 3 2 Drop 25 | . 3 5 8 8 1 Fire 73 | . 10 39 . 3 21 Melee 26 | . . 4 12 10 . Ram . | . . . . . . Kick 6 | . . 3 . 1 2 Crush . | . . . . . . Escape Stasis . | . . . . . . Rewire . | . . . . . . Trap . | . . . . . . Miscellaneous . | . . . . . . Route ------- -11/Scrapyard -10/Materials -9/Materials -9/Mines -8/Materials -8/Garrison History --------- Turn | Location | Event 8 | -11/Scrapyard | Discovered new exit (range 16) 68 | -11/Scrapyard | Entered Materials 252 | -10/Materials | Discovered new exit (range 9) 261 | -10/Materials | Entered another Materials area 261 | -9/Materials | Evolved 2 slots: Utility x2 301 | -9/Materials | Build established: Mutant 703 | -9/Materials | Discovered new exit (range 14) 751 | -9/Materials | Entered Mines 852 | -9/Mines | Assisted by bots powering up and referring to "LRC-V3" 1237 | -9/Mines | Joined a pair of Derelicts in attacking an 0b10 outpost 1338 | -9/Mines | Received a Rocket Launcher from a helpful Derelict 1363 | -9/Mines | Discovered new exit (range 13) 1384 | -9/Mines | Assembled infested the area 1387 | -9/Mines | Entered Materials 1387 | -8/Materials | Accompanied by 5 allies 1387 | -8/Materials | Evolved 2 slots: Utility x2 1395 | -8/Materials | Led the pair of lost Derelicts to an unsafe place 1582 | -8/Materials | Lost 5 allies 1730 | -8/Materials | Lost 3 parts (3u) 1742 | -8/Materials | Identified exit to Garrison 1742 | -8/Materials | Entered Garrison 1752 | -8/Garrison | Triggered checkpoint 1808 | -8/Garrison | Core integrity fell below 50% 1814 | -8/Garrison | Lost 5 parts (1p1n2u1w) 1848 | -8/Garrison | Garrison Relay disabled 1854 | -8/Garrison | Triggered checkpoint 1857 | -8/Garrison | Core integrity fell below 20% 1873 | -8/Garrison | Destroyed by G-47 Trooper with Particle Gun Last Messages --------------- 01812_ H-55 Commando destroyed. 01817_ Power Shielding destroyed. 01820_ Dropped Aluminum Leg. 01827_ Particle Gun destroyed. 01834_ Connecting with Garrison Terminal... >>Access(Emergency) Found 46 emergency access points. Map updated. 01837_ ALERT: Dispatching investigation squad to Factory. 01848_ Garrison Relay disabled. 01848_ Relay Coupler [Swarmer] tumbles out of relay unit. 01848_ Relay Coupler [NC] tumbles out of relay unit. 01848_ Relay Coupler [Swarmer] tumbles out of relay unit. 01848_ Relay Coupler [NC] tumbles out of relay unit. 01854_ Beams of light sweep through the air. An alarm sounds. 01854_ Lgt. Nuclear Core destroyed. 01854_ Particle Gun destroyed. 01863_ Imp. Heat Sink destroyed. 01868_ Critical hit (Burn: +37). 01871_ Kicked G-47 Trooper. Map ----- +----------------------------------------------------+ | ?????????????????????????????#######??????? | | ?????????????????????????????# #??????? | | ?????????????????????????????# #??????? | | ?????????????????????????????# #??????? | | ?????????????????????????????### #??????? | | ???????????????????????????????# #??????? | | ???????????????????????????????# #??????? | | ???????????????????????????????# #??????? | | ???????????????????????????????# #??????? | | ???????????????????????????????# #??????? | | ???????????????????????????????# #??????? | | ???????????????????????????????# #??????? | | ???????????????????????????????# ###????? | | ???????????????????????????????# % ### #? | | ???????????????????????????????# = %+% #? | | ???????????????????????????????# ### #? | | ???????????????????????????????# ###????? | | ???????????????????????????????# #??????? | | ???????????????????????????????# #??????? | | ???????????????????????????????# #??????? | | ???????????????????????????????# ^#??????? | | ???????????????????????????????# ^#??????? | | ???????????###???????????????### #??????? | | ??????????##!!################T# #??????? | | ??????????#! b g +??????? | | ??????????#! ^## g@g +??????? | | ??????????##!!?#+#### ######### #??????? | | ???????????##?????### ###?????# #??????? | | ??????????????????# #"#?????# #??????? | | ??????????????????+ !"#?????# +??????? | | ??????????????????# !! #?????# #??????? | | ??????????????????# !"#?????# #??????? | | ??????????????????# #"#?????? #???+??? | | ??????????????????### ###?????? ??????? | | ????????????????????##+#???????? ??????? | | ???????????????????????????????+ ?????? | | ????????????????????????????????#####?????? | | ??????????????????????????????????????????? | | ??????????????????????????????????????????? | | ??????????????????????????????????????????? | | ??????????????????????????????????????????? | | ??????????????????????????????????????????? | | ??????????????????????????????????????????? | | ??????????????????????????????????????????? | | ??????????????????????????????????????????? | | ??????????????????????????????????????????? | | ????????????????????????????+?????????????? | | ??????????????????????????????????????????? | | ?????????????????????????????????+????????? | | ??????????????????????????????????????????? | +----------------------------------------------------+ Best States ------------- Heat Dissipation 45 Energy Generation 14 Energy Capacity 280 Matter Stores 300 Matter Capacity 300 Sight Range 16 Terrain Scan Density 10 Armor Coverage 600 Power Shielding 33 Propulsion Shielding 33 Utility Shielding 33 Weapon Shielding 33 Evasion (%) 55 Item Schematics ----------------- Aluminum Leg | -9/Materials | Scanalyzed Ion Engine | -9/Materials | Scanalyzed Robot Schematics ------------------ None Fabricated ------------ Nothing Repaired ---------- Nothing Alien Tech Used ----------------- None Achievements -------------- None Challenges ------------ None Game ------ Seed SniperReactiveInverter Manual? 0 Play Time 00:22:27 Cumulative 148.8 hours Start 2025.08.12 @ 23:44:57 End 2025.08.13 @ 00:05:15 Sessions 1 Manual Loads 0 Difficulty Rogue Special Mode None Game No. 140 Rogue 137 Adventurer 1 Explorer 2 Win Type - Total 1 Types 1/0/0/0/0/0/0/0/0/0 Lore% 50 Gallery% 60 Achievement% 46 Wizard Run 0 Options --------- Layout 0 ASCII 0 Keyboard 0 Movement Mouse Keybinds 0 Fullscreen 2 Font 24/Smallcaps Map View 76x50 Zoom Use 0% Tactical HUD 1 Map Filters NONE Filters NONE Steam 1 RUN: 5a9a4c21-9e7f-4a10-9c00-f5b137c7a370